Cogmind - Beta 13 @@@ ROGUE MODE // 2024.04.02 @ 16:19:52 Player: Aa1k Result: Destroyed by S-27 Virus with Autogun Performance ------------- Evolutions (5) 2500 Regions Visited (6) 1200 Robots Destroyed (85) 425 Value Destroyed (2513) 2513 Prototype IDs (5) 100 Alien Tech Used (0) 0 Bonus (246) 246 TOTAL SCORE: 6984 Bonus ------- High Alert Combat Kills 172 Follower Combat Kills 74 Cogmind --------- Core Integrity 0/1000 Matter 12/300 Energy 100/100 System Corruption 10% Temperature Cool (0) Movement Core (50) Location -5/Factory Parts ------- > --- POWER (3) -------- (None) > --- PROPULSION (3) --- (None) > --- UTILITY (7) ------ (None) > --- WEAPON (4) ------- (None) > --- INVENTORY (5) ---- Wheel Peak State ------------ > --- POWER ------------ Light Nuclear Core Improved Deuterium Engine Neutrino Core > --- PROPULSION ------- Armored Wheel Armored Huge Wheel > --- UTILITY ---------- Large Storage Unit Improved Targeting Computer Improved Targeting Computer Advanced Targeting Computer Matter Filter Precision Matter Filter Hardened Medium Armor Plating > --- WEAPON ----------- Improved Heavy Machine Gun Heavy Flak Cannon Mass Driver Improved Proton Missile Launcher > --- INVENTORY -------- Ion Engine Light Nuclear Core Wheel Wheel Wheel Armored Wheel Armored Wheel Power Shielding Improved Power Shielding High-powered Tractor Beam Thermic Laser Advanced Plasma Cannon Assault Cannon Rocket Launcher Mini Grenade Launcher [Rating: 70] Favorites ----------- Power Light Nuclear Core Engine Ion Engine Power Core Light Nuclear Core Propulsion Armored Wheel Treads Light Treads Wheel Armored Wheel Flight Unit VTOL Module Utility Large Storage Unit Device High-powered Tractor Beam Storage Large Storage Unit Processor Improved Targeting Computer Protection Hardened Medium Armor Plating Weapon Heavy Assault Rifle Energy Gun Medium Laser Energy Cannon Advanced Plasma Cannon Ballistic Gun Heavy Assault Rifle Ballistic Cannon Assault Cannon Launcher Rocket Launcher Build | -11 -10 -9 -8 -7 -6 -5 ------- Run | Yrd Mat Mat Mat Fac Fac Fac Slots Evolved 10 | . . 2 2 2 2 2 Power 2 | . . . . 1 . 1 Propulsion 1 | . . 1 . . . . Utility 5 | . . 1 1 1 2 . Weapon 2 | . . . 1 . . 1 Parts Attached 125 | 5 9 30 20 15 5 41 Power 17 | 1 . 2 1 6 . 7 Engine 9 | 1 . 1 . 4 . 3 Core 8 | . . 1 1 2 . 4 Reactor . | . . . . . . . Propulsion 26 | 1 4 6 10 1 . 4 Treads 4 | . . 2 2 . . . Leg . | . . . . . . . Wheel 21 | 1 4 4 8 1 . 3 Hover . | . . . . . . . Flight 1 | . . . . . . 1 Utility 32 | 1 4 5 6 1 3 12 Device 12 | . . . 2 . 1 9 Storage 6 | 1 3 1 1 . . . Processor 4 | . . . 2 1 1 . Hackware . | . . . . . . . Protection 10 | . 1 4 1 . 1 3 Artifact . | . . . . . . . Weapon 50 | 2 1 17 3 7 2 18 Energy Gun 7 | 1 . 3 . . . 3 Energy Cannon 1 | . . . . . . 1 Ballistic Gun 20 | 1 . 10 2 3 . 4 Ballistic Cannon 10 | . . . 1 2 2 5 Launcher 12 | . 1 4 . 2 . 5 Special Weapon . | . . . . . . . Impact Weapon . | . . . . . . . Slashing Weapon . | . . . . . . . Piercing Weapon . | . . . . . . . Special Melee Weapon . | . . . . . . . Unidentified Prototypes 5 | . . 2 . 1 . 2 Parts Lost 39 | . . 11 . 1 2 25 Power 8 | . . 1 . . . 7 Propulsion 7 | . . 4 . . . 3 Utility 8 | . . . . . 1 7 Weapon 16 | . . 6 . 1 1 8 Highest Loss Streak 13 | . . 6 . 1 2 13 To Critical Strikes 1 | . . . . . . 1 Average Slot Usage (%) 90 | . 97 92 97 95 92 80 Engine 5 | . 14 5 . 7 6 4 Core 6 | . . 4 9 6 6 7 Treads 4 | . . 9 13 . . . Wheel 15 | . 28 18 11 19 13 10 Device 5 | . . . 6 7 6 8 Storage 11 | . 14 14 17 15 12 4 Processor 9 | . . . 7 15 20 13 Protection 7 | . 12 18 4 . 6 5 Energy Gun 1 | . 1 3 . . . 2 Ballistic Gun 10 | . 14 14 19 7 5 4 Ballistic Cannon 5 | . . . 6 7 6 7 Launcher 3 | . 13 2 . 5 5 3 Naked Turns 71 | . . . . . . 71 Heaviest Build 92 | 14 91 40 52 53 63 92 Greatest Support 60 | 10 32 42 60 40 40 40 Greatest Overweight (x) 3 | 2 2 3 2 1 1 2 Average Overweight (x) . | . . . . 1 1 1 Largest Inventory Capacity 25 | 8 25 15 15 15 15 15 Average Capacity 14 | 6 12 15 15 15 15 14 Most Carried 15 | 7 14 15 15 15 15 15 Average Carried 12 | 3 9 14 14 14 13 9 Final Capacity 15 | 8 15 15 15 15 15 5 Final Carried 15 | 7 14 15 15 15 13 1 Class Distribution -------------------- 47% | Gunner 29% | Mutant 12% | Scavenger-Gunner 9% | Scavenger-Mutant Dominant Class ---------------- Mutant | -10/Materials Mutant | -9/Materials Gunner | -8/Materials Gunner | -7/Factory Gunner | -6/Factory Gunner | -5/Factory Resources | -11 -10 -9 -8 -7 -6 -5 ----------- Run | Yrd Mat Mat Mat Fac Fac Fac Matter Collected 2425 | 179 124 582 404 350 75 711 Remotely 1060 | . . . 51 350 75 584 Salvage Created 2355 | . 129 699 254 159 50 1064 Parts 144 | . 6 57 17 11 1 52 Haulers Intercepted 2 | . . 2 . . . . Recyclers Shooed 3 | . 1 . . . 1 1 Parts Field Recycled 32 | . . . 32 . . . Retrieved Matter 474 | . . . 474 . . . Parts Self-Destructed . | . . . . . . . Prevented . | . . . . . . . Kills | -11 -10 -9 -8 -7 -6 -5 ------- Run | Yrd Mat Mat Mat Fac Fac Fac Combat Hostiles Destroyed 53 | . 1 25 3 6 1 17 Guns 24 | . 1 15 2 1 . 5 Cannons 9 | . . . 1 1 1 6 AOE 20 | . . 10 . 4 . 6 Classes Destroyed 14 | . 4 5 1 2 . 2 Worker 8 | . . 3 1 . . 4 Builder 4 | . 1 . . . . 3 Tunneler 2 | . . . . . . 2 Hauler 2 | . . 2 . . . . Recycler 7 | . 1 . 1 1 . 4 Mechanic 1 | . . . 1 . . . Operator 2 | . 1 . . . . 1 Watcher 6 | . . 3 1 . . 2 Swarmer 18 | . . 12 . . . 6 Grunt 20 | . 1 9 2 3 1 4 Duelist 1 | . . . . 1 . . Sentry 7 | . . 4 1 1 . 1 Hunter 5 | . . . . . . 5 Programmer 2 | . . . . 1 . 1 Best Kill Streak 9 | . 3 5 4 3 1 9 Combat Bots Only 5 | . 1 5 2 3 1 4 Max Kills in Single Turn 6 | . 1 3 2 2 1 6 Gunslinging . | . . . . . . . Exploded 3 | . . 3 . 2 . 2 Melee . | . . . . . . . Uniques/NPCs Destroyed . | . . . . . . . Combat | -11 -10 -9 -8 -7 -6 -5 -------- Run | Yrd Mat Mat Mat Fac Fac Fac Hostile Shots Fired 429 | . 6 123 11 21 5 263 Missed 113 | . 2 32 3 5 . 71 Damage Taken 6597 | . 112 1345 159 660 589 3732 Core 1432 | . 12 295 15 87 13 1010 Absorbed by Shields . | . . . . . . . Redirected to Shielding 211 | . 9 156 . . . 46 Regen/Repaired (Parts) 214 | . . . 15 . . 199 Core Remaining (%) 83 | 100 95 26 97 87 98 . Volleys Fired 172 | . 10 74 16 22 3 47 Largest 4 | . 2 2 3 3 2 4 Hottest 213 | . 50 90 90 114 71 213 Shots Fired 376 | . 16 122 48 38 6 146 Gun 240 | . 10 108 35 16 3 68 Cannon 91 | . . . 13 17 3 58 Launcher 45 | . 6 14 . 5 . 20 Special . | . . . . . . . Kinetic 296 | . 10 84 48 33 6 115 Thermal 18 | . . 7 . . . 11 Explosive 39 | . 6 12 . 5 . 16 Electromagnetic 23 | . . 19 . . . 4 Robot Hit Streak 12 | . 7 9 9 9 6 12 Robot Miss Streak 5 | . 1 5 4 2 1 4 Penetration Max 1 | . . . . . . 1 Secondary Targets 4 | . . 4 . . . . Max Gunslinging Chain 1 | . . 1 . . . . Shots Hit Robots 230 | . 11 74 27 29 5 84 Core Hits 176 | . 6 56 10 17 3 84 Critical Kills . | . . . . . . . Critical Parts Destroyed 1 | . . . . . . 1 Critical Strikes 6 | . . . . 1 1 4 Burn 1 | . . . . . . 1 Destroy 1 | . . . . . . 1 Blast 4 | . . . . 1 1 2 Melee Attacks . | . . . . . . . Impact . | . . . . . . . Slashing . | . . . . . . . Piercing . | . . . . . . . Sneak Attacks . | . . . . . . . Combat Hostiles . | . . . . . . . Follow-up Attacks . | . . . . . . . Damage Inflicted 8674 | . 312 2054 604 1330 155 4219 Guns 2457 | . 82 1030 258 163 45 879 Cannons 2010 | . . . 267 400 53 1290 Explosions 4041 | . 230 1015 . 767 . 2029 Melee . | . . . . . . . Ramming 166 | . . 9 79 . 57 21 Kinetic 3981 | . 82 826 525 563 98 1887 Thermal 1440 | . . 211 . 282 . 947 Explosive 2607 | . 230 829 . 485 . 1063 Electromagnetic 480 | . . 179 . . . 301 Impact . | . . . . . . . Slashing . | . . . . . . . Piercing . | . . . . . . . Highest Corruption 10 | . . . . 1 . 10 Average Corruption 6 | . . . . 1 . 9 Corruption Purged . | . . . . . . . Corruption Blocked . | . . . . . . . Effects 12 | . . . . . . 12 Message Errors 2 | . . . . . . 2 Matter Fused 3 | . . . . . . 3 Heat Flow Errors 2 | . . . . . . 2 Energy Discharges 1 | . . . . . . 1 Parts Rejected 1 | . . . . . . 1 Data Loss (minor) 1 | . . . . . . 1 Alerts 1 | . . . . . . 1 Weapon Failures 1 | . . . . . . 1 Overload Shots . | . . . . . . . Overflow Damage 464 | . . 120 18 49 1 276 Projectiles 80 | . . . 18 34 . 28 Explosions 383 | . . 120 . 15 . 248 Melee 1 | . . . . . 1 . Knockbacks 23 | . . . 4 5 1 13 Impact 1 | . . . . . 1 . Kinetic 19 | . . . 3 5 . 11 Secondary 3 | . . . 1 . . 2 Self-Inflicted Damage 878 | . 68 354 38 79 28 311 Shots 27 | . 4 11 . 2 . 10 Rammed 10 | . . 2 3 . 2 3 Targets Rammed 10 | . . 2 3 . 2 3 Kicked . | . . . . . . . Crushed . | . . . . . . . Highest Temperature 597 | . 2 147 138 443 72 597 Average Temperature 141 | . 2 47 45 79 42 208 Received Heat Transfer 702 | . 24 195 72 36 27 348 Effects 29 | . . . . . . 29 Shutdowns 10 | . . . . . . 10 Energy Bleed 3 | . . . . . . 3 Interference 6 | . . . . . . 6 Short Circuit 2 | . . . . . . 2 Damage (minor) 4 | . . . . . . 4 Damage (major) 4 | . . . . . . 4 Siege Activations . | . . . . . . . Robots Corrupted . | . . . . . . . Combat Hostiles . | . . . . . . . Parts Fried . | . . . . . . . Impact Corruptions 2 | . . . 1 . 1 . Robots Melted . | . . . . . . . Combat Hostiles . | . . . . . . . Parts Melted 3 | . . . . . . 3 Heat Transferred 1461 | . . 211 . 200 . 1050 Parts Sabotaged . | . . . . . . . Parts Stolen . | . . . . . . . Parts Stripped . | . . . . . . . Power Chain Reactions 1 | . . 1 . . . . Alert | -11 -10 -9 -8 -7 -6 -5 ------- Run | Yrd Mat Mat Mat Fac Fac Fac Peak Influence 639 | . 85 639 368 352 79 626 Initial 269 | . . 35 269 98 59 28 Average 240 | . 55 427 259 184 65 215 Maximum Alert Level 2 | . . 2 1 1 . 2 Low Security (%) 49 | 100 100 10 23 58 100 61 Level 1 27 | . . 24 76 41 . 6 Level 2 23 | . . 65 . . . 31 Level 3 . | . . . . . . . Level 4 . | . . . . . . . Level 5 . | . . . . . . . High Security . | . . . . . . . Max Security . | . . . . . . . Squads Dispatched 10 | . 1 2 1 2 . 4 Investigation 2 | . . 1 . 1 . . Extermination 3 | . . . . 1 . 2 Reinforcement 4 | . 1 1 1 . . 1 Assault 1 | . . . . . . 1 Garrison . | . . . . . . . Intercept . | . . . . . . . Searches Triggered . | . . . . . . . Construction Impeded 1 | . . . . . . 1 Haulers Reinforced . | . . . . . . . Active Scanning Responses . | . . . . . . . Cargo Convoy Interrupts . | . . . . . . . Stealth | -11 -10 -9 -8 -7 -6 -5 --------- Run | Yrd Mat Mat Mat Fac Fac Fac Distress Signals 7 | . . 1 3 1 . 2 Communications Jammed . | . . . . . . . Distress Signals . | . . . . . . . Times Spotted 100 | . 2 41 6 14 6 31 Peak Tracking Total 7 | . 1 6 4 4 2 7 Tactical Retreats 6 | . . 2 . 1 . 3 Traps | -11 -10 -9 -8 -7 -6 -5 ------- Run | Yrd Mat Mat Mat Fac Fac Fac Traps Triggered 4 | . . 1 . 2 . 1 Indirectly . | . . . . . . . Trap Hack Attempts . | . . . . . . . Triggered . | . . . . . . . Disarmed . | . . . . . . . Reprogrammed . | . . . . . . . Reused . | . . . . . . . Traps Extracted . | . . . . . . . Installed . | . . . . . . . Triggered . | . . . . . . . Machines | -11 -10 -9 -8 -7 -6 -5 ---------- Run | Yrd Mat Mat Mat Fac Fac Fac Machines Disabled 26 | . . 6 . 5 . 15 Max in Single Turn 11 | . . 2 . 4 . 11 Machines Repaired . | . . . . . . . Machines Dismantled . | . . . . . . . Machines Sabotaged . | . . . . . . . Overloaded Fab Kills . | . . . . . . . Hacking | -11 -10 -9 -8 -7 -6 -5 --------- Run | Yrd Mat Mat Mat Fac Fac Fac Machines Accessed 10 | . 2 2 3 1 . 2 Terminals 5 | . 2 1 2 . . . Fabricators 1 | . . . . . . 1 Repair Stations 2 | . . . 1 . . 1 Recycling Units 1 | . . . . 1 . . Scanalyzers 1 | . . 1 . . . . Garrison Access . | . . . . . . . Total Hacks 20 | . 3 4 4 3 . 6 Successful 12 | . 3 3 2 1 . 3 Failed 8 | . . 1 2 2 . 3 Catastrophic 1 | . . . 1 . . . Database Lockouts . | . . . . . . . Manual 7 | . 3 1 3 . . . Terminals 6 | . 3 1 2 . . . Fabricators 2 | . . . . . . 2 Repair Stations 6 | . . . 2 . . 4 Recycling Units 3 | . . . . 3 . . Scanalyzers 3 | . . 3 . . . . Garrison Access . | . . . . . . . Terminal Hacks 3 | . 3 . . . . . Part Schematic 1 | . 1 . . . . . Fabricator Index 1 | . 1 . . . . . Recall Reinforcements 1 | . 1 . . . . . Fabricator Hacks 1 | . . . . . . 1 Network Status 1 | . . . . . . 1 Repair Station Hacks 4 | . . . 2 . . 2 Scan Component 2 | . . . 1 . . 1 Repair 2 | . . . 1 . . 1 Recycling Unit Hacks 1 | . . . . 1 . . Process 1 | . . . . 1 . . Scanalyzer 3 | . . 3 . . . . Insert Component 2 | . . 2 . . . . Analyze 1 | . . 1 . . . . Garrison Access Hacks . | . . . . . . . Unauthorized Hacks . | . . . . . . . Terminals . | . . . . . . . Fabricators . | . . . . . . . Repair Stations . | . . . . . . . Recycling Units . | . . . . . . . Scanalyzers . | . . . . . . . Garrison Access . | . . . . . . . Data Cores Recovered 2 | . 1 . . . . 1 Used . | . . . . . . . Hacking Detections 10 | . 1 2 4 1 . 2 Full Trace Events 2 | . . 1 . 1 . . Feedback Events . | . . . . . . . Feedback Blocked . | . . . . . . . Robot Schematics Acquired . | . . . . . . . Robots Built . | . . . . . . . Authchips . | . . . . . . . Time . | . . . . . . . Total Robot Build Rating . | . . . . . . . Part Schematics Acquired 2 | . 1 1 . . . . Parts Built . | . . . . . . . Authchips . | . . . . . . . Time . | . . . . . . . Total Part Build Rating . | . . . . . . . Parts Repaired 2 | . . . 1 . . 1 Time 64 | . . . 26 . . 38 Parts Recycled . | . . . . . . . Recycled Matter 223 | . . . . 223 . . Retrieved Matter . | . . . . . . . Retrieved Components . | . . . . . . . Parts Scanalyzed 1 | . . 1 . . . . Part Schematics Acquired 1 | . . 1 . . . . Parts Damaged . | . . . . . . . Bothacking | -11 -10 -9 -8 -7 -6 -5 ------------ Run | Yrd Mat Mat Mat Fac Fac Fac Used RIF Installer . | . . . . . . . Robots Hacked . | . . . . . . . Non-combat . | . . . . . . . Combat . | . . . . . . . Robot Hacks Applied . | . . . . . . . Relay Couplers Released . | . . . . . . . Fabnet Peak Effective % . | . . . . . . . Robots Rewired . | . . . . . . . Allies Hacked 1 | . . . . 1 . . Hacks Repelled . | . . . . . . . Allies | -11 -10 -9 -8 -7 -6 -5 -------- Run | Yrd Mat Mat Mat Fac Fac Fac Total Allies 3 | . . . . 3 . . Largest Group 3 | . . . . 3 . . Highest-Rated Group 93 | . . . . 93 . . Highest-Rated Ally 31 | . . . . 31 . . Total Orders . | . . . . . . . Ally Attacks 20 | . . . . 20 . . Total Damage 323 | . . . . 323 . . Kills 2 | . . . . 2 . . Allies Corrupted 1 | . . . . 1 . . Allies Melted . | . . . . . . . Intel | -11 -10 -9 -8 -7 -6 -5 ------- Run | Yrd Mat Mat Mat Fac Fac Fac Robot Analysis Total . | . . . . . . . Derelict Logs Recovered . | . . . . . . . Drone Launches . | . . . . . . . Drone Recoveries . | . . . . . . . Exploration | -11 -10 -9 -8 -7 -6 -5 ------------- Run | Yrd Mat Mat Mat Fac Fac Fac Turns Passed 4273 | 91 279 942 663 817 221 1260 Spaces Moved 3029 | 89 238 545 405 642 156 954 Core 222 | 49 . . . . . 173 Treads 386 | . . 221 165 . . . Legs . | . . . . . . . Wheels 2420 | 40 238 324 240 642 156 780 Hover . | . . . . . . . Flight 1 | . . . . . . 1 Fastest Speed 35 | 50 90 93 95 105 110 35 Average Speed 110 | 86 97 120 133 107 110 103 Slowest Speed 240 | 150 130 240 240 110 110 130 Overloaded Moves . | . . . . . . . Propulsion Burnouts . | . . . . . . . Robots Hopped . | . . . . . . . Cave-ins Triggered . | . . . . . . . Exploration Rate (%) 23 | 4 36 42 35 17 6 27 Regions Visited 6 Branch Regions . Pre-discovered Areas . | . . . . . . . Known Exits Taken . | . . . . . . . Unknown Exits Taken 6 | 1 1 1 1 1 1 . Scrap Searched . | . . . . . . . Spaces Dug . | . . . . . . . Terrain Destroyed 362 | . 26 165 1 59 . 111 Melee . | . . . . . . . Projectile 10 | . . . 1 . . 9 AOE 352 | . 26 165 . 59 . 102 Terrain Rammed . | . . . . . . . Walls Destroyed . | . . . . . . . Machines Disabled . | . . . . . . . Actions | -11 -10 -9 -8 -7 -6 -5 --------- Run | Yrd Mat Mat Mat Fac Fac Fac Total 3628 | 100 271 704 497 737 199 1120 Wait 179 | . . 24 26 41 30 58 Move 3023 | 88 237 544 404 641 155 954 Hop . | . . . . . . . Pick Up 50 | 7 8 12 9 7 2 5 Fast Attach 45 | 5 3 11 5 4 1 16 Attach 37 | . 1 9 1 5 4 17 Detach 10 | . 1 5 1 2 . 1 Swap 43 | . 5 10 14 6 . 8 Drop 59 | . 6 13 18 9 2 11 Fire 172 | . 10 74 16 22 3 47 Melee . | . . . . . . . Ram 9 | . . 1 3 . 2 3 Kick . | . . . . . . . Crush 1 | . . 1 . . . . Escape Stasis . | . . . . . . . Rewire . | . . . . . . . Trap . | . . . . . . . Miscellaneous . | . . . . . . . Route ------- -11/Scrapyard -10/Materials -9/Materials -8/Materials -7/Factory -6/Factory -5/Factory (discovered 1 exit: [*Fac]) History --------- Turn | Location | Event 5 | -11/Scrapyard | Discovered new exit (range 12) 92 | -11/Scrapyard | Entered Materials 307 | -10/Materials | Build established: Mutant 348 | -10/Materials | Discovered new exit (range 15) 371 | -10/Materials | Entered another Materials area 371 | -9/Materials | Evolved 2 slots: Propulsion x1, Utility x1 868 | -9/Materials | Core integrity fell below 50% 914 | -9/Materials | Lost 6 parts (1p3n2w) 1266 | -9/Materials | Discovered new exit (range 9) 1313 | -9/Materials | Entered another Materials area 1313 | -8/Materials | Evolved 2 slots: Utility x1, Weapon x1 1640 | -8/Materials | Met 7R-MNS 1829 | -8/Materials | Repaired Wheel 1964 | -8/Materials | Discovered new exit (range 11) 1976 | -8/Materials | Entered Factory 1976 | -7/Factory | Evolved 2 slots: Power x1, Utility x1 1977 | -7/Factory | Caught up to 7R-MNS 2504 | -7/Factory | Allied Derelicts emerged from ambush trap array 2551 | -7/Factory | Build established: Gunner 2586 | -7/Factory | P-60 Hacker assimilated allied AZ-FI1(g) 2767 | -7/Factory | Discovered new exit (range 10) 2793 | -7/Factory | Entered another Factory area 2793 | -6/Factory | Evolved 2 slots: Utility x2 2794 | -6/Factory | Caught up to 7R-MNS 2860 | -6/Factory | Discovered new exit (range 13) 3014 | -6/Factory | Entered another Factory area 3014 | -5/Factory | Evolved 2 slots: Power x1, Weapon x1 3069 | -5/Factory | Repaired Hrd. Medium Armor Plating 3168 | -5/Factory | Discovered new exit (range 9) 3834 | -5/Factory | Lost 3 parts (1p1n1u) 3922 | -5/Factory | System corruption reached 10% 3969 | -5/Factory | Lost 13 parts (1p1n5u6w) 4156 | -5/Factory | Spotted B-75 Beast 4181 | -5/Factory | Core integrity fell below 50% 4181 | -5/Factory | Released all parts (8) 4205 | -5/Factory | Core integrity fell below 20% 4214 | -5/Factory | First assault squad dispatched 4214 | -5/Factory | Lost 5 parts (1p1n1u2w) 4274 | -5/Factory | Destroyed by S-27 Virus with Autogun Last Messages --------------- Released Autogun. Released Mass Driver. Acquired VTOL Module. Penetrated by Slug. VTOL Module destroyed. Acquired 4 matter. Penetrated by Slug. System corrupted: Matter fused (-5). Acquired 6 matter. T-07 Excavator destroyed. Acquired Lgt. Ion Engine. ALERT: Significant disruption in Zone 4F, assault force dispatched. System corrupted: Energy discharge (-28). K-01 Serf cleans the Assembly Bed. Lgt. Ion Engine destroyed. Slammed into U-05 Engineer. ALERT: Rogue bot located, Programmers report to Factory Zone 6F. Slammed into K-01 Serf. Map ----- +----------------------------------------------------+ | #???????????????????????????????????????????????? | | #???????????????????????????????????????????????? | | #???????????????????????????????????????????????? | | #???????????????????????????????????????????????? | | ##???????????????????????????????????????????????? | | ?????########????????????????????????????????????? | | ?????# #????????????????????????????????????? | | ###### #????????????????????????????????????? | | # """#????????????????????????????????????? | | + """#???????##############???????????????? | | # """#???????# #???????????????? | | # #???????# #???????????????? | | ################ #???????????????? | | ### / / #???????????????? | | ??################### #???????????????? | | ????????????????????# /???????????????? | | ????????????????????# ! #?????#?????????? | | ????????????????????# #???? #?????????? | | ????????????????????#! ] #??? #?????????? | | ????????????????????# #?? #?????????? | | ????????????????????#] #? #?????????? | | ????????????????????# # #?????????? | | ???????????????????############+## #?????????? | | ???????????????????# ?????# #?????????? | | ???????????????????# " ######s #?????????? | | ???????????????????+ "Tk @ s g #?????????? | | ???????????????????# ###########+#+#?????????? | | ???????????????????# [????????????????????????? | | ???????????????????#####?????????????????????????? | | ?????????????????????????????????????????????????? | | ?????????????????????????????????????????????????? | | ?????????????????????????????????????????????????? | | ?????????????????????????????????????????????????? | | ?????????????????????????????????????????????????? | | | | | | | | | | | | | | | | | | | | | | | | | | | | | | | | | +----------------------------------------------------+ Best States ------------- Heat Dissipation 40 Energy Generation 39 Energy Capacity 565 Matter Stores 500 Matter Capacity 500 Sight Range 16 Terrain Scan Density 10 Armor Coverage 450 Power Shielding 66 Propulsion Shielding 66 Weapon Cycling 20 Evasion (%) 50 Targeting Accuracy 20 Recoil Reduction 3 Matter Filtering 50 Kinecelleration 40 Item Schematics ----------------- Tractor Beam | -10/Materials | Hacked Wheel | -9/Materials | Scanalyzed Robot Schematics ------------------ None Fabricated ------------ Nothing Alien Tech Used ----------------- None Achievements -------------- It Was An Accident, I Swear Challenges ------------ None Game ------ Seed GuidedBattleTube Manual? 0 Play Time 01:10:42 Cumulative 7.7 hours Start 2024.04.02 @ 14:55:12 End 2024.04.02 @ 16:19:52 Sessions 1 Manual Loads 0 Difficulty Rogue Special Mode None Game No. 11 Rogue 11 Adventurer 0 Explorer 0 Win Type - Total 0 Types 0/0/0/0/0/0/0/0/0 Lore% 3 Gallery% 18 Achievement% 13 Wizard Run 0 Options --------- Layout 1 ASCII 0 Keyboard 0 Movement Mouse Keybinds 0 Fullscreen 1 Font 24/Smallcaps Map View 50x35 Zoom Use 0% Tactical HUD 0 Map Filters NONE Filters NONE Steam 1 RUN: c1bdeffe-329b-4c2a-8e28-b8631f85dd29